fUST/lending_fUST_20240923
["ID","MTS","AMOUNT","RATE_DAILY","PERIOD"]
[338908574,1727060945238,-222.312342,0.0002271,2]
[338908575,1727060945259,-222.312342,0.00024079,2]
[338908576,1727060945281,-3584.84765021,0.00025,30]
[338908577,1727060945302,-24900.0,0.00025397,2]
[338908578,1727060945322,-180.978,0.00027077,15]
[338908579,1727060945342,-482.863391,0.00027397,2]
[338908580,1727060945364,-271.5,0.000281,2]
[338908581,1727060945387,-151.0,0.0003,120]
[338908582,1727060945410,-151.0,0.0003,120]
[338908583,1727060945430,-151.0,0.00031507,120]
[338908584,1727060945451,-1812.34505757,0.0003226,2]
[338908587,1727060957102,-335.1415243,0.00026977,2]
[338908588,1727060957123,-335.14152423,0.00029109,2]
[338908589,1727060962770,335.14152423,0.00031241,2]
[338908590,1727060966108,-10779.08223,0.0003226,2]
[338908591,1727060966130,-151.0,0.00032493,120]
[338908592,1727060966150,-3000.0,0.00033,93]
[338908593,1727060966171,-151.0,0.00033014,120]
[338908594,1727060966201,-482.863391,0.00033165,2]
[338908595,1727060966228,-3113.27289669,0.00033547,60]
[338908615,1727061032047,-24900.0,0.00032141,2]
[338908616,1727061032057,-150.0,0.00033047,14]
[338908617,1727061032067,-150.0,0.00033047,14]
[338908618,1727061032081,-200.0,0.00033047,14]
[338908619,1727061032090,-3000.0,0.00033047,97]
[338908620,1727061032099,-335.14152423,0.00033373,2]
[338908621,1727061032109,-494.31151663,0.00033547,60]
[338908622,1727061032118,-411.9572385,0.0003442,2]
[338908623,1727061032127,-2678.00004617,0.0003448,30]
[338908624,1727061032137,-6244.68,0.000345,3]
[338908625,1727061032147,-5203.9,0.000345,3]
[338908626,1727061032157,-4336.58,0.000345,3]
[338908627,1727061032167,-115.73205302,0.000345,3]
[338908643,1727061038371,-3498.08794698,0.000345,3]
[338908645,1727061038381,-500.0,0.00034509,7]
[338908646,1727061038390,-459.98434241,0.00034509,7]
[338908647,1727061038399,-11171.65624249,0.00034509,9]
[338908653,1727061040048,-538.10361738,0.0003441,2]
[338908654,1727061040058,-4304.36172029,0.00034509,9]
[338908655,1727061040068,-6071.6151549,0.00034509,9]
[338908656,1727061040078,-36606.3727649,0.0003451,5]
[338908657,1727061040090,-40953.392466,0.0003451,5]
[338908658,1727061040099,-54267.13060177,0.0003451,5]
[338908659,1727061040112,-165371.10598823,0.0003451,5]
[338908660,1727061040121,-281548.60071897,0.0003451,5]
[338908696,1727061043099,-24.27234687,0.0003451,5]
[338908697,1727061043350,-3777.68603861,0.0003451,5]
[338908727,1727061046114,-272.52946568,0.0003451,5]
[338908728,1727061046127,-283.28519999,0.0003451,5]
[338908772,1727061392651,2165.0,0.00025,120]
[338909465,1727061939165,-500.0,0.00021,30]
[338909466,1727061939189,-2031.57526763,0.000216,2]
[338909493,1727061958135,-2575.77545137,0.000216,2]
[338909494,1727061958158,-500.0,0.00021918,2]
[338909495,1727061958181,-500.0,0.00025,30]
[338909496,1727061958203,-500.0,0.00025,30]
[338909497,1727061958225,-166.2504623,0.00025042,2]
[338909498,1727061958247,-448.993588,0.00025189,2]
[338909499,1727061958267,-448.993588,0.00025874,2]
[338909500,1727061958404,-448.993588,0.00026558,2]
[338909501,1727061958427,-300.0,0.00026573,2]
[338909502,1727061958448,-300.0,0.00026573,2]
[338909504,1727061958469,-176.593,0.00027397,16]
[338909505,1727061958490,-496.480889,0.00027397,2]
[338909506,1727061958512,-13718.98248973,0.00029659,2]
[338909832,1727062051108,-833.63858046,0.00029659,2]
[338909846,1727062054147,-760.89403099,0.00029659,2]
[338910253,1727062151111,-478.45338864,0.000167,2]
[338910294,1727062167131,-151.0,0.0003,120]
[338910295,1727062167154,-151.0,0.0003,120]
[338910296,1727062167175,-244.93,0.000304,2]
[338910297,1727062167199,-151.0,0.00031425,120]
[338910458,1727062203198,288.54725829,0.00015466,2]
[338910595,1727062238631,-84.54378122,0.00031605,2]
[338910596,1727062238643,-24815.45621878,0.00031605,2]
[338910597,1727062238653,-151.0,0.00032493,120]
[338910598,1727062238827,-151.0,0.00032569,7]
[338910599,1727062238837,-151.0,0.00032849,120]
[338910601,1727062238846,-154.0,0.00033,2]
[338910602,1727062238855,-150.0,0.00033064,14]
[338910603,1727062238864,-150.0,0.00033064,14]
[338910604,1727062238873,-200.0,0.00033064,14]
[338910605,1727062238883,-496.480889,0.00033165,2]
[338910606,1727062238892,-150.37581723,0.00033936,2]
[338910607,1727062238902,-151.0,0.0003399,15]
[338910609,1727062238912,-269.847,0.00034099,2]
[338910610,1727062238921,-151.0,0.00034274,120]
[338910611,1727062238930,-167.57076215,0.000344,2]
[338910612,1727062238939,-212.09664904,0.00034409,2]
[338910613,1727062238948,-212.09664903,0.00034421,2]
[338910614,1727062238957,-370.76151465,0.00034421,2]
[338910615,1727062238967,-501.77707629,0.00034473,5]
[338910616,1727062238976,-2370.45982793,0.0003448,3]
[338910617,1727062238988,-255.68017207,0.0003448,3]
[338910618,1727062238998,-4100.28,0.0003448,3]
[338910619,1727062239008,-3416.9,0.0003448,3]
[338910620,1727062239018,-2847.42,0.0003448,3]
[338910621,1727062239027,-14610.70899661,0.0003449,5]
[338910624,1727062239555,618.61885,0.000273,120]
[338910650,1727062240201,-618.61885,0.000337,120]
[338910651,1727062240212,-30003.30781059,0.0003449,5]
[338910652,1727062240222,-15657.38191606,0.0003449,5]
[338910653,1727062240234,-1400.06077154,0.0003449,5]
[338910654,1727062240246,-2119.41837599,0.0003449,5]
[338910655,1727062240409,-92.62650894,0.0003449,5]
[338910656,1727062241224,-29951.32073577,0.0003449,5]
[338910657,1727062241234,-500.0,0.00034499,7]
[338910658,1727062241243,-171.98903969,0.00034499,7]
[338910659,1727062241254,-150.112233,0.000345,7]
[338910660,1727062241263,-3625.20691715,0.000345,5]
[338910662,1727062241275,-3035.30350175,0.000345,5]
[338910663,1727062241333,-3847.71910499,0.000345,5]
[338910681,1727062243271,-2372.85,0.0003449,3]
[338910682,1727062243282,-927.3043449,0.000345,5]
[338910683,1727062243498,-2286.78478405,0.000345,5]
[338910684,1727062243509,-433.94808721,0.000345,5]
[338910685,1727062243522,-25080.08143325,0.000345,5]
[338910686,1727062243534,-767.49920483,0.000345,5]
[338910687,1727062243546,-26917.17783267,0.000345,5]
[338910688,1727062243558,-31049.10467871,0.000345,5]
[338910689,1727062243573,-4586.2,0.000345,5]
[338910690,1727062243584,-592.63843377,0.000345,5]
[338910691,1727062243596,-2106.18151288,0.000345,5]
[338910692,1727062243608,-2624.77507516,0.000345,5]
[338910706,1727062246179,-32872.31276198,0.000345,5]
[338910707,1727062246188,-109651.9228636,0.0003451,5]
[338910736,1727062251013,8244.0,0.00025,120]
[338910865,1727062291681,166.4469,0.00031245,2]
[338910950,1727062341495,500.0,0.00027397,2]
[338911183,1727063133117,-457.15093142,0.000215,2]
[338911184,1727063133140,-3000.0,0.000216,2]
[338911185,1727063133162,-41.01059632,0.000216,2]
[338911188,1727063234111,-469.39195022,0.000216,2]
[338911193,1727063350154,-600.0,0.00021,10]
[338911194,1727063350176,-61.14513693,0.000216,2]
[338911195,1727063350198,-3000.0,0.0002161,2]
[338911196,1727063350219,-3000.0,0.0002162,2]
[338911197,1727063350242,-300.0,0.00021629,2]
[338911198,1727063350263,-2255.3253598,0.0002163,2]
[338911199,1727063350293,-744.6746402,0.0002163,2]
[338911200,1727063350315,-1581.92319645,0.0002164,2]
[338911203,1727063366211,-17488.08851981,0.00020701,2]
[338911205,1727063369146,-7411.91148019,0.00020701,2]
[338911206,1727063369168,-1418.07680355,0.0002164,2]
[338911207,1727063369189,-3000.0,0.0002165,2]
[338911208,1727063369210,-3000.0,0.0002166,2]
[338911209,1727063369229,-150.0,0.00021666,2]
[338911210,1727063369250,-3000.0,0.0002167,2]
[338911211,1727063369271,-3000.0,0.0002168,2]
[338911212,1727063369293,-3000.0,0.0002169,2]
[338911213,1727063369314,-3000.0,0.000217,2]
[338911214,1727063369336,-3000.0,0.0002171,2]
[338911215,1727063369361,-3000.0,0.0002172,2]
[338911216,1727063369382,-3000.0,0.0002173,2]
[338911217,1727063369402,-3000.0,0.0002174,2]
[338911218,1727063369422,-3000.0,0.0002175,2]
[338911219,1727063369442,-3000.0,0.0002176,2]
[338911220,1727063369462,-3000.0,0.0002177,2]
[338911221,1727063369484,-3000.0,0.0002178,2]
[338911222,1727063369505,-3000.0,0.0002179,2]
[338911223,1727063369527,-3000.0,0.000218,2]
[338911224,1727063369551,-3000.0,0.0002181,2]
[338911225,1727063369574,-3000.0,0.0002182,2]
[338911226,1727063369594,-3000.0,0.0002183,2]
[338911227,1727063369615,-3000.0,0.0002184,2]
[338911228,1727063369636,-3000.0,0.0002185,2]
[338911229,1727063369658,-3000.0,0.0002186,2]
[338911230,1727063369679,-3000.0,0.0002187,2]
[338911231,1727063369701,-3000.0,0.0002188,2]
[338911232,1727063369723,-3000.0,0.0002189,2]
[338911233,1727063369745,-3000.0,0.000219,2]
[338911234,1727063369766,-1000.69177762,0.000219,10]
[338911235,1727063369790,-4396.317355,0.0002191,2]
[338911236,1727063369810,-600.0,0.0002202,10]
[338911237,1727063369830,-500.0,0.0002212,2]
[338911238,1727063369849,-500.0,0.0002212,2]
[338911239,1727063369873,-500.0,0.0002212,2]
[338911240,1727063369893,-500.0,0.0002212,2]
[338911241,1727063369912,-500.0,0.0002212,2]
[338911242,1727063369934,-449.77584313,0.00022365,3]
[338911243,1727063369956,-8219.14328849,0.00022365,3]
[338911244,1727063371115,-15505.52138954,0.00022365,3]
[338911246,1727063373190,-10472.20353767,0.00022365,3]
[338911247,1727063373211,-501.24382593,0.00022375,2]
[338911248,1727063373232,-572.63685201,0.00022375,2]
[338911249,1727063373388,-506.12218503,0.00022375,2]
[338911250,1727063373410,-500.0,0.00022375,2]
[338911251,1727063373431,-514.43402254,0.00022375,2]
[338911252,1727063373451,-1000.0,0.0002349,2]
[338911253,1727063373472,-511.9119689,0.0002349,2]
[338911254,1727063373495,-501.75044568,0.0002349,2]
[338911255,1727063373515,-1020.55397532,0.0002349,2]
[338911256,1727063373536,-500.83278847,0.0002349,2]
[338911257,1727063373557,-501.22269959,0.00023745,2]
[338911258,1727063373579,-190.3220713,0.00023955,2]
[338911259,1727063373599,-2416.2253073,0.00024349,2]
[338911260,1727063373620,-571.54768344,0.000245,2]
[338911261,1727063373640,-247.013714,0.00024565,2]
[338911262,1727063373661,-162.511901,0.0002463,2]
[338911263,1727063373685,-162.511901,0.0002471,2]
[338911264,1727063373706,-162.511901,0.0002479,2]
[338911265,1727063373726,-162.511901,0.00024871,2]
[338911266,1727063373747,-162.511901,0.00024951,2]
[338911267,1727063373766,-9692.12526,0.00025,2]
[338911268,1727063373790,-162.511901,0.00025031,2]
[338911269,1727063373811,-162.511901,0.00025111,2]
[338911270,1727063373832,-162.511901,0.00025192,2]
[338911271,1727063373853,-247.013714,0.0002525,2]
[338911272,1727063373874,-162.511901,0.00025272,2]
[338911273,1727063373895,-162.511901,0.00025352,2]
[338911274,1727063373916,-162.511901,0.00025432,2]
[338911275,1727063373937,-162.511901,0.00025512,2]
[338911276,1727063373958,-162.511901,0.00025593,2]
[338911277,1727063373979,-162.511901,0.00025673,2]
[338911278,1727063374000,-162.511901,0.00025753,2]
[338911279,1727063374021,-162.511901,0.00025833,2]
[338911280,1727063374042,-162.511901,0.00025914,2]
[338911281,1727063374062,-247.013714,0.00025935,2]
[338911282,1727063374082,-500.0,0.00025944,2]
[338911283,1727063374103,-500.29632203,0.00025944,2]
[338911284,1727063374123,-500.64230462,0.00025944,2]
[338911285,1727063374144,-500.7346796,0.00025995,2]
[338911286,1727063374166,-449.77584313,0.00026453,4]
[338911287,1727063374187,-7376.95592606,0.00026453,4]
[338911331,1727063438732,-623.16722819,0.00025451,2]
[338911332,1727063438742,-300.0,0.00026452,2]
[338911333,1727063438752,-16444.14948417,0.00026453,4]
[338911342,1727063440233,-10375.76280547,0.00026453,4]
[338911343,1727063440243,-181.037,0.00027113,15]
[338911344,1727063440253,-500.1945691,0.00027149,2]
[338911345,1727063440263,-500.0,0.00027149,2]
[338911346,1727063440272,-458.25778674,0.00027149,2]
[338911347,1727063440283,-1000.0,0.00027314,2]
[338911348,1727063440293,-500.0,0.00027397,2]
[338911349,1727063440302,-500.84182278,0.00027582,5]
[338911350,1727063440312,-254.28709068,0.00027582,5]
[338911351,1727063440321,-505.80760417,0.00027582,5]
[338911352,1727063440331,-500.0,0.00027582,5]
[338911353,1727063440340,-500.0,0.00027582,2]
[338911354,1727063440350,-285.18620079,0.00027582,5]
[338911355,1727063440360,-1000.0,0.00028519,5]
[338911356,1727063440370,-333.68536323,0.000289,2]
[338911357,1727063440379,-543.74086947,0.00028952,5]
[338911358,1727063440389,-501.51929951,0.00028952,2]
[338911359,1727063440405,-500.0,0.00028973,5]
[338911360,1727063440415,-1977.37,0.00028978,3]
[338911361,1727063440425,-1647.81,0.00028978,3]
[338911362,1727063440434,-1373.17,0.00028978,3]
[338911363,1727063440444,-449.77584313,0.00028988,4]
[338911364,1727063440454,-32248.4866399,0.00028988,4]
[338911377,1727063443433,-1144.31,0.00028978,3]
[338911378,1727063443443,-1948.3815758,0.00028988,4]
[338911379,1727063443453,-168.169752,0.00028988,7]
[338911380,1727063443462,-168.169752,0.00028988,7]
[338911381,1727063443471,-168.169752,0.00028988,7]
[338911382,1727063443480,-168.169752,0.00028988,7]
[338911383,1727063443489,-151.0,0.00028988,7]
[338911384,1727063443498,-151.0,0.00028988,7]
[338911385,1727063443508,-3148.43090191,0.00028988,4]
[338911386,1727063443523,-17787.09489932,0.00028988,4]
[338911387,1727063443536,-153197.24617868,0.00028988,4]
[338911388,1727063443546,-449.77584313,0.0002899,4]
[338911389,1727063443555,-470.39232778,0.00028997,2]
[338911390,1727063443565,-35161.0521319,0.00028998,9]
[338911391,1727063443574,-22764.95115317,0.00028998,9]
[338911392,1727063443583,-346938.40449283,0.00028998,2]
[338911393,1727063443592,-151.0,0.00028998,7]
[338911394,1727063443602,-151.0,0.00028998,7]
[338911395,1727063443611,-151.0,0.00028998,7]
[338911396,1727063443621,-153.138902,0.00028998,7]
[338911397,1727063443630,-168.169752,0.00028998,7]
[338911398,1727063443639,-168.169752,0.00028998,7]
[338911399,1727063443653,-2425.313693,0.00028998,7]
[338911400,1727063443663,-151.0,0.00028998,7]
[338911401,1727063443673,-2425.313693,0.00028998,7]
[338911402,1727063443683,-187.33167144,0.00028998,7]
[338911403,1727063443693,-500.93616481,0.00029,5]
[338911404,1727063443702,-21796.42,0.00029,14]
[338911405,1727063443711,-5021.89,0.00029,14]
[338911406,1727063443720,-8925.75,0.00029,14]
[338911407,1727063443730,-350.24,0.00029,7]
[338911408,1727063443739,-503.52218049,0.00029819,5]
[338911409,1727063443748,-449.77584313,0.0002998,4]
[338911410,1727063443758,-449.77584313,0.0002999,4]
[338911411,1727063443768,-151.0,0.0002999,7]
[338911412,1727063443777,-151.0,0.0002999,7]
[338911413,1727063443787,-151.0,0.0002999,7]
[338911414,1727063443797,-2425.313693,0.0002999,7]
[338911415,1727063443809,-2425.313693,0.0002999,7]
[338911416,1727063443818,-77202.50224,0.0003,10]
[338911417,1727063443828,-151.0,0.0003,120]
[338911418,1727063443840,-151.0,0.0003,120]
[338911419,1727063443849,-652.38,0.0003,14]
[338911420,1727063443859,-151.134105,0.0003,7]
[338911421,1727063443868,-151.0,0.0003,7]
[338911422,1727063443878,-180.619377,0.0003,7]
[338911423,1727063443887,-151.0,0.0003,7]
[338911424,1727063443897,-168.169752,0.0003,7]
[338911425,1727063443906,-168.169752,0.0003,7]
[338911426,1727063443916,-152.445819,0.0003,7]
[338911427,1727063443925,-2425.313693,0.0003,7]
[338911428,1727063444038,-2425.313693,0.0003,7]
[338911429,1727063444048,-1000.0,0.00030342,5]
[338911430,1727063444057,-333.68536315,0.00030344,2]
[338911431,1727063444067,-480.4868524,0.00031023,5]
[338911432,1727063444076,-151.0,0.00031425,120]
[338911433,1727063444091,-333.68536315,0.00031789,2]
[338911434,1727063444100,-151.0,0.00032301,120]
[338911435,1727063444109,-154.77212592,0.000325,120]
[338911436,1727063444118,-1327.40521494,0.00032847,5]
[338911437,1727063444128,-151.0,0.00032849,120]
[338911438,1727063444139,-154.0,0.00033,2]
[338911439,1727063444149,-150.0,0.00033109,14]
[338911440,1727063444160,-150.0,0.00033109,14]
[338911441,1727063444185,-200.0,0.00033109,14]
[338911442,1727063444195,-200.29376959,0.00033109,2]
[338911443,1727063444204,-500.0,0.00033165,2]
[338911444,1727063444214,-505.40837132,0.00033173,5]
[338911445,1727063444224,-500.0,0.00033173,5]
[338911446,1727063444233,-500.0,0.00033173,5]
[338911447,1727063444243,-449.77584313,0.0003319,5]
[338911448,1727063444252,-21796.42,0.000332,14]
[338911449,1727063444261,-5021.89,0.000332,14]
[338911450,1727063444271,-8925.75,0.000332,14]
[338911451,1727063444280,-350.24,0.000332,30]
[338911452,1727063444291,-333.68536315,0.00033233,2]
[338911453,1727063444300,-1701.82154913,0.00033423,120]
[338911454,1727063444310,-4949.01507972,0.00033581,2]
[338911455,1727063444319,-1064.73428916,0.00033698,120]
[338911456,1727063444329,-150.112234,0.000337,6]
[338911457,1727063444339,-449.77584313,0.00033782,5]
[338911458,1727063444348,-4949.01507972,0.00033874,2]
[338911459,1727063444357,-151.0,0.00034168,14]
[338911460,1727063444367,-151.0,0.00034168,14]
[338911461,1727063444376,-2425.313693,0.00034168,14]
[338911462,1727063444385,-2425.313693,0.00034168,14]
[338911463,1727063444394,-652.38,0.000342,14]
[338911464,1727063444403,-4949.01507972,0.00034209,2]
[338911465,1727063444413,-151.0,0.00034274,120]
[338911466,1727063444422,-1331.20340788,0.00034337,7]
[338911467,1727063444431,-168.169752,0.00034337,14]
[338911468,1727063444441,-168.169752,0.00034337,14]
[338911469,1727063444450,-6079.41920559,0.000344,120]
[338911470,1727063444459,-1000.0,0.0003441,2]
[338911471,1727063444468,-814.5902119,0.00034421,2]
[338911472,1727063444477,-449.77584313,0.0003448,5]
[338911473,1727063444486,-449.77584313,0.0003448,5]
[338911474,1727063444496,-449.77584313,0.0003449,5]
[338911475,1727063444505,-1000.0,0.0003449,7]
[338911476,1727063444514,-500.0,0.0003449,7]
[338911477,1727063444524,-787.241529,0.0003449,14]
[338911478,1727063444533,-151.0,0.0003449,14]
[338911479,1727063444543,-787.241529,0.0003449,14]
[338911480,1727063444553,-1056.260539,0.0003449,14]
[338911481,1727063444563,-1056.260539,0.0003449,14]
[338911482,1727063444571,-151.0,0.0003449,14]
[338911483,1727063444581,-1141.045438,0.0003449,14]
[338911484,1727063444590,-1141.045438,0.0003449,14]
[338911485,1727063444600,-151.0,0.0003449,14]
[338911486,1727063444609,-151.0,0.0003449,14]
[338911487,1727063444618,-2425.313693,0.0003449,14]
[338911488,1727063444627,-2425.313693,0.0003449,14]
[338911489,1727063444636,-899.55168626,0.0003449,5]
[338911490,1727063444646,-151.0,0.00034499,14]
[338911491,1727063444656,-787.241529,0.000345,14]
[338911492,1727063444665,-787.241529,0.000345,14]
[338911493,1727063444674,-151.0,0.000345,14]
[338911494,1727063444684,-787.241529,0.000345,14]
[338911495,1727063444693,-787.241529,0.000345,14]
[338911496,1727063444702,-1056.260539,0.000345,14]
[338911497,1727063444712,-1056.260539,0.000345,14]
[338911498,1727063444721,-1056.260539,0.000345,14]
[338911499,1727063444730,-1056.260539,0.000345,14]
[338911500,1727063444740,-151.0,0.000345,14]
[338911501,1727063444750,-156.782295,0.000345,14]
[338911502,1727063444759,-1141.045438,0.000345,14]
[338911503,1727063444768,-1141.045438,0.000345,14]
[338911504,1727063444777,-1141.045438,0.000345,14]
[338911505,1727063444787,-1141.045438,0.000345,14]
[338911506,1727063444798,-151.0,0.000345,14]
[338911507,1727063444809,-151.0,0.000345,14]
[338911508,1727063444818,-151.0,0.000345,14]
[338911509,1727063444827,-151.0,0.000345,14]
[338911510,1727063444838,-2425.313693,0.000345,14]
[338911511,1727063444848,-2425.313693,0.000345,14]
[338911512,1727063444858,-2425.313693,0.000345,14]
[338911513,1727063444867,-2425.313693,0.000345,14]
[338911514,1727063444877,-152.397761,0.0003451,14]
[338911515,1727063444889,-151.0,0.0003451,14]
[338911516,1727063444899,-151.0,0.0003451,14]
[338911517,1727063444910,-151.0,0.0003451,14]
[338911518,1727063444919,-151.0,0.0003451,14]
[338911519,1727063444930,-151.0,0.0003451,14]
[338911520,1727063444940,-151.0,0.0003451,14]
[338911521,1727063444950,-151.0,0.0003451,14]
[338911522,1727063444960,-151.0,0.0003451,14]
[338911523,1727063444970,-151.0,0.0003451,14]
[338911524,1727063444979,-151.0,0.0003451,14]
[338911525,1727063444988,-151.0,0.0003451,14]
[338911526,1727063444997,-193.052965,0.0003451,14]
[338911527,1727063445006,-193.052965,0.0003451,14]
[338911528,1727063445015,-193.052965,0.0003451,14]
[338911529,1727063445024,-193.052965,0.0003451,14]
[338911530,1727063445033,-771.75103,0.0003451,14]
[338911531,1727063445043,-771.75103,0.0003451,14]
[338911532,1727063445052,-771.75103,0.0003451,14]
[338911533,1727063445062,-771.75103,0.0003451,14]
[338911534,1727063445070,-2190.78353,0.0003451,14]
[338911535,1727063445079,-2190.78353,0.0003451,14]
[338911536,1727063445088,-2190.78353,0.0003451,14]
[338911537,1727063445097,-2190.78353,0.0003451,14]
[338911538,1727063445107,-470.531574,0.0003451,14]
[338911539,1727063445116,-470.531574,0.0003451,14]
[338911540,1727063445125,-151.0,0.0003451,14]
[338911541,1727063445134,-151.872368,0.0003451,14]
[338911542,1727063445143,-470.531574,0.0003451,14]
[338911543,1727063445155,-470.531574,0.0003451,14]
[338911544,1727063445165,-151.0,0.0003451,14]
[338911545,1727063445175,-151.0,0.0003451,14]
[338911546,1727063445187,-151.0,0.0003451,14]
[338911547,1727063445197,-151.0,0.0003451,14]
[338911548,1727063445206,-151.0,0.0003451,14]
[338911549,1727063445216,-153.039508,0.0003451,14]
[338911550,1727063445225,-239.944092,0.0003451,14]
[338911551,1727063445234,-239.944092,0.0003451,14]
[338911552,1727063445244,-239.944092,0.0003451,14]
[338911553,1727063445254,-239.944092,0.0003451,14]
[338911554,1727063445263,-239.944092,0.0003451,14]
[338911555,1727063445272,-239.944092,0.0003451,14]
[338911556,1727063445282,-151.0,0.0003451,14]
[338911557,1727063445291,-151.0,0.0003451,14]
[338911558,1727063445300,-151.0,0.0003451,14]
[338911559,1727063445309,-461.902746,0.0003451,14]
[338911560,1727063445318,-461.902746,0.0003451,14]
[338911561,1727063445328,-461.902746,0.0003451,14]
[338911562,1727063445337,-151.0,0.0003451,14]
[338911563,1727063445347,-151.0,0.0003451,14]
[338911564,1727063445356,-151.0,0.0003451,14]
[338911565,1727063445366,-461.902746,0.0003451,14]
[338911566,1727063445375,-461.902746,0.0003451,14]
[338911567,1727063445384,-461.902746,0.0003451,14]
[338911568,1727063445393,-506.268534,0.0003451,14]
[338911569,1727063445404,-506.268534,0.0003451,14]
[338911570,1727063445414,-506.268534,0.0003451,14]
[338911571,1727063445424,-506.268534,0.0003451,14]
[338911572,1727063445434,-506.268534,0.0003451,14]
[338911573,1727063445443,-506.268534,0.0003451,14]
[338911574,1727063445452,-151.0,0.0003451,14]
[338911575,1727063445461,-151.0,0.0003451,14]
[338911576,1727063445471,-151.0,0.0003451,14]
[338911577,1727063445482,-151.0,0.0003451,14]
[338911578,1727063445491,-151.0,0.0003451,14]
[338911579,1727063445500,-157.97917,0.0003451,14]
[338911580,1727063445510,-164.045047,0.0003451,14]
[338911581,1727063445519,-164.045047,0.0003451,14]
[338911582,1727063445529,-164.045047,0.0003451,14]
[338911583,1727063445538,-164.045047,0.0003451,14]
[338911584,1727063445548,-164.045047,0.0003451,14]
[338911585,1727063445557,-164.045047,0.0003451,14]
[338911586,1727063445566,-231.928708,0.0003451,14]
[338911587,1727063445576,-231.928708,0.0003451,14]
[338911588,1727063445585,-231.928708,0.0003451,14]
[338911589,1727063445595,-231.928708,0.0003451,14]
[338911590,1727063445604,-231.928708,0.0003451,14]
[338911591,1727063445613,-231.928708,0.0003451,14]
[338911592,1727063445623,-787.241529,0.0003451,14]
[338911593,1727063445632,-787.241529,0.0003451,14]
[338911594,1727063445641,-151.0,0.0003451,14]
[338911596,1727063445655,-151.0,0.0003451,14]
[338911597,1727063445664,-787.241529,0.0003451,14]
[338911598,1727063445673,-787.241529,0.0003451,14]
[338911599,1727063445683,-1056.260539,0.0003451,14]
[338911600,1727063445692,-1056.260539,0.0003451,14]
[338911601,1727063445701,-202.299495,0.0003451,14]
[338911602,1727063445710,-202.299495,0.0003451,14]
[338911603,1727063445720,-202.299495,0.0003451,14]
[338911604,1727063445729,-1056.260539,0.0003451,14]
[338911605,1727063445738,-1056.260539,0.0003451,14]
[338911606,1727063445748,-202.299495,0.0003451,14]
[338911607,1727063445758,-202.299495,0.0003451,14]
[338911608,1727063445767,-202.299495,0.0003451,14]
[338911609,1727063445776,-152.199984,0.0003451,14]
[338911610,1727063445786,-152.199984,0.0003451,14]
[338911611,1727063445796,-1141.045438,0.0003451,14]
[338911612,1727063445808,-152.199984,0.0003451,14]
[338911613,1727063445818,-1141.045438,0.0003451,14]
[338911614,1727063445905,-152.199984,0.0003451,14]
[338911615,1727063445915,-1141.045438,0.0003451,14]
[338911617,1727063445924,-152.199984,0.0003451,14]
[338911619,1727063445934,-1141.045438,0.0003451,14]
[338911620,1727063445943,-152.199984,0.0003451,14]
[338911621,1727063445954,-151.0,0.0003451,14]
[338911622,1727063445964,-151.0,0.0003451,14]
[338911623,1727063445974,-151.0,0.0003451,14]
[338911624,1727063445983,-151.0,0.0003451,14]
[338911625,1727063445993,-151.0,0.0003451,14]
[338911626,1727063446002,-151.0,0.0003451,14]
[338911627,1727063446011,-5565.157389,0.0003451,14]
[338911628,1727063446021,-5565.157389,0.0003451,14]
[338911629,1727063446030,-5565.157389,0.0003451,14]